fUSD/lending_fUSD_20250410
["ID","MTS","AMOUNT","RATE_DAILY","PERIOD"]
[357639239,1744263069819,-154.2856573,0.0003863,2]
[357639240,1744263069829,-500.0,0.0003863,2]
[357639241,1744263069839,-500.0,0.0003863,2]
[357639242,1744263069848,-162.44454878,0.0003863,2]
[357639243,1744263069857,-500.0,0.0003863,2]
[357639244,1744263069867,-500.0,0.0003863,2]
[357639245,1744263069878,-573.09,0.0003863,2]
[357639246,1744263069888,-4651.38,0.0003863,2]
[357639247,1744263069897,-533.9538127,0.0003863,2]
[357639248,1744263069907,-500.0,0.0003863,2]
[357639249,1744263069917,-1570.69,0.0003863,2]
[357639250,1744263069926,-500.0,0.0003863,2]
[357639251,1744263069935,-500.0,0.0003863,2]
[357639252,1744263069944,-500.0,0.0003863,2]
[357639253,1744263069954,-500.0,0.0003863,2]
[357639254,1744263069963,-500.0,0.0003863,2]
[357639255,1744263069973,-500.0,0.0003863,2]
[357639256,1744263069982,-646.27,0.0003863,2]
[357639257,1744263069992,-1967.15,0.0003863,2]
[357639258,1744263070001,-500.0,0.0003863,2]
[357639259,1744263070011,-973.2,0.0003863,2]
[357639260,1744263070021,-485.79273703,0.0003863,2]
[357639261,1744263070030,-500.0,0.0003863,2]
[357639262,1744263070039,-500.0,0.0003863,2]
[357639263,1744263070049,-1133.28,0.0003863,2]
[357639264,1744263070058,-500.0,0.0003863,2]
[357639265,1744263070068,-552.73,0.0003863,2]
[357639266,1744263070077,-500.0,0.0003863,2]
[357639267,1744263070088,-1290.575287,0.0003863,2]
[357639268,1744263070098,-535.78,0.0003863,2]
[357639269,1744263070107,-1438.14,0.0003863,2]
[357639270,1744263070117,-500.0,0.0003863,2]
[357639271,1744263070126,-613.06542047,0.0003863,2]
[357639272,1744263070135,-500.0,0.0003863,2]
[357639273,1744263070145,-987.76,0.0003863,2]
[357639274,1744263070154,-500.0,0.0003863,2]
[357639275,1744263070164,-878.74,0.0003863,2]
[357639276,1744263070173,-500.0,0.0003863,2]
[357639277,1744263070183,-509.29862994,0.00038673,5]
[357639278,1744263070193,-501.53719131,0.00038673,5]
[357639279,1744263070202,-500.0,0.00038673,5]
[357639280,1744263070212,-500.0,0.00038673,5]
[357639281,1744263070222,-502.28414667,0.00038673,5]
[357639282,1744263070231,-500.0,0.00038673,5]
[357639283,1744263070240,-2034.126,0.00038679,2]
[357639284,1744263070250,-500.0,0.0003876,5]
[357639285,1744263070260,-303.40816957,0.00038797,14]
[357639286,1744263070269,-229.28503645,0.00038804,2]
[357639287,1744263070278,-500.0,0.00038848,2]
[357639288,1744263070287,-500.0,0.00038848,2]
[357639289,1744263070297,-500.0,0.00038848,2]
[357639290,1744263070306,-500.0,0.00038848,2]
[357639291,1744263070315,-500.0,0.00038848,2]
[357639292,1744263070325,-500.0,0.00038848,2]
[357639293,1744263070334,-500.0,0.00038848,2]
[357639294,1744263070344,-21212.87207541,0.00038849,2]
[357639295,1744263070353,-500.0,0.00038903,2]
[357639296,1744263070364,-500.0,0.00038903,2]
[357639297,1744263070376,-500.0,0.00038903,2]
[357639298,1744263070385,-500.0,0.00038903,2]
[357639299,1744263070395,-500.0,0.00038903,2]
[357639300,1744263070406,-500.0,0.00038903,2]
[357639301,1744263070415,-999.36,0.00038903,2]
[357639302,1744263070425,-999.36,0.00038903,2]
[357639303,1744263070434,-999.36,0.00038903,2]
[357639304,1744263070444,-999.36,0.00038903,2]
[357639305,1744263070454,-999.36,0.00038903,2]
[357639306,1744263070463,-999.58185297,0.00038903,2]
[357639307,1744263070473,-500.0,0.00038903,2]
[357639308,1744263070483,-500.0,0.00038903,2]
[357639309,1744263070493,-500.0,0.00038903,2]
[357639310,1744263070502,-500.0,0.00038903,2]
[357639311,1744263070511,-500.0,0.00038903,2]
[357639312,1744263070521,-500.0,0.00038903,2]
[357639313,1744263070531,-620.78886019,0.00038903,2]
[357639314,1744263070541,-150.0,0.00038903,3]
[357639315,1744263070550,-150.0,0.00038903,3]
[357639316,1744263070559,-500.0,0.00038904,2]
[357639317,1744263070569,-500.0,0.00038904,2]
[357639318,1744263070578,-405.92665306,0.00038904,2]
[357639319,1744263070588,-500.0,0.00038904,2]
[357639320,1744263070598,-418.77456837,0.00038904,2]
[357639321,1744263070607,-502.35736839,0.00038904,2]
[357639322,1744263070617,-286.12421358,0.00038904,2]
[357639323,1744263070626,-534.4017005,0.00038904,2]
[357639324,1744263070636,-500.0,0.00038904,2]
[357639325,1744263070646,-500.0,0.00038904,2]
[357639326,1744263070655,-607.29088758,0.00038904,2]
[357639327,1744263070665,-500.0,0.00038904,2]
[357639328,1744263070675,-500.0,0.00038904,2]
[357639329,1744263070685,-538.07551071,0.00038904,2]
[357639330,1744263070694,-500.0,0.00038904,2]
[357639331,1744263070703,-500.0,0.00038904,2]
[357639332,1744263070713,-553.86418632,0.00038904,2]
[357639333,1744263070722,-500.0,0.00038904,2]
[357639334,1744263070732,-500.0,0.00038904,2]
[357639335,1744263070741,-500.0,0.00038904,2]
[357639336,1744263070751,-500.0,0.00038904,2]
[357639337,1744263070761,-500.0,0.00038904,2]
[357639338,1744263070771,-500.0,0.00038904,2]
[357639339,1744263070780,-500.0,0.00038904,2]
[357639340,1744263070789,-500.0,0.00038904,2]
[357639341,1744263070799,-502.81083454,0.00038904,2]
[357639342,1744263070808,-500.0,0.00038904,2]
[357639343,1744263070818,-527.29960308,0.00038904,2]
[357639344,1744263070827,-500.0,0.00038904,2]
[357639345,1744263070837,-500.0,0.00038904,2]
[357639346,1744263070846,-500.0,0.00038904,2]
[357639347,1744263070855,-568.00894017,0.00038904,2]
[357639348,1744263070865,-500.0,0.00038904,2]
[357639349,1744263070874,-500.0,0.00038904,2]
[357639350,1744263070883,-500.0,0.00038904,2]
[357639351,1744263070893,-500.0,0.00038904,2]
[357639352,1744263070902,-392.20961648,0.00038904,2]
[357639353,1744263070911,-1057.12,0.00038904,2]
[357639354,1744263070921,-500.0,0.00038904,2]
[357639355,1744263070930,-500.0,0.00038904,2]
[357639356,1744263071011,-506.82458188,0.00038904,2]
[357639357,1744263071116,-500.0,0.00038904,2]
[357639358,1744263071126,-500.0,0.00038904,2]
[357639359,1744263071135,-500.0,0.00038904,2]
[357639360,1744263071145,-500.0,0.00038904,2]
[357639361,1744263071155,-648.87,0.00038904,2]
[357639362,1744263071164,-946.59,0.00038904,2]
[357639363,1744263071174,-500.0,0.00038904,2]
[357639364,1744263071184,-500.0,0.00038904,2]
[357639365,1744263071193,-534.85,0.00038904,2]
[357639366,1744263071203,-500.0,0.00038904,2]
[357639367,1744263071212,-641.6,0.00038904,2]
[357639368,1744263071222,-500.0,0.00038904,2]
[357639369,1744263071231,-500.0,0.00038904,2]
[357639370,1744263071241,-500.0,0.00038904,2]
[357639371,1744263071251,-500.0,0.00038904,2]
[357639372,1744263071260,-530.6681954,0.00038904,2]
[357639373,1744263071269,-500.0,0.00038904,2]
[357639374,1744263071279,-500.0,0.00038904,2]
[357639375,1744263071288,-335.65888007,0.00038904,2]
[357639376,1744263071298,-705.12,0.00038904,2]
[357639377,1744263071307,-500.0,0.00038904,2]
[357639378,1744263071316,-500.0,0.00038904,2]
[357639379,1744263071326,-500.0,0.00038904,2]
[357639380,1744263071336,-500.0,0.00038904,2]
[357639381,1744263071345,-500.0,0.00038904,2]
[357639382,1744263071354,-500.0,0.00038904,2]
[357639383,1744263071368,-500.0,0.00038904,2]
[357639384,1744263071377,-500.0,0.00038904,2]
[357639385,1744263071387,-500.0,0.00038904,2]
[357639386,1744263071396,-643.80836105,0.00038904,2]
[357639387,1744263071406,-500.0,0.00038904,2]
[357639388,1744263071415,-643.93,0.00038904,2]
[357639389,1744263071424,-500.0,0.00038904,2]
[357639390,1744263071434,-500.0,0.00038904,2]
[357639391,1744263071444,-500.0,0.00038904,2]
[357639392,1744263071454,-531.05312394,0.00038904,2]
[357639393,1744263071463,-524.81287468,0.00038904,2]
[357639394,1744263071473,-2000.0,0.00038904,2]
[357639395,1744263071483,-500.0,0.00038904,2]
[357639396,1744263071493,-848.85,0.00038904,2]
[357639397,1744263071504,-644.23,0.00038904,2]
[357639398,1744263071514,-509.97586067,0.00038904,2]
[357639399,1744263071527,-500.0,0.00038904,2]
[357639400,1744263071538,-784.44,0.00038904,2]
[357639401,1744263071547,-500.0,0.00038904,2]
[357639402,1744263071558,-500.0,0.00038904,2]
[357639403,1744263071568,-293.80376517,0.00038904,2]
[357639404,1744263071577,-533.00568109,0.00038904,2]
[357639405,1744263071587,-500.0,0.00038904,2]
[357639406,1744263071596,-892.08,0.00038904,2]
[357639407,1744263071605,-222.11953054,0.00038904,2]
[357639408,1744263071614,-173.57200274,0.00038904,2]
[357639409,1744263071624,-500.0,0.00038904,2]
[357639410,1744263071634,-500.0,0.00038904,2]
[357639411,1744263071643,-517.80916033,0.00038904,2]
[357639412,1744263071653,-500.0,0.00038904,2]
[357639413,1744263071662,-500.0,0.00038904,2]
[357639414,1744263071671,-321.36382213,0.00038904,2]
[357639415,1744263071681,-500.0,0.00038904,2]
[357639416,1744263071690,-529.26,0.00038904,2]
[357639417,1744263071699,-521.54,0.00038904,2]
[357639418,1744263071709,-500.0,0.00038904,2]
[357639419,1744263071719,-531.52392186,0.00038904,2]
[357639420,1744263071728,-500.0,0.00038904,2]
[357639421,1744263071738,-721.04,0.00038904,2]
[357639422,1744263071747,-524.04,0.00038904,2]
[357639423,1744263071756,-500.0,0.00038904,2]
[357639424,1744263071766,-500.0,0.00038904,2]
[357639425,1744263071775,-500.0,0.00038904,2]
[357639426,1744263071784,-500.0,0.00038904,2]
[357639427,1744263071794,-500.0,0.00038904,2]
[357639428,1744263071803,-506.89,0.00038904,2]
[357639429,1744263071812,-500.0,0.00038904,2]
[357639430,1744263071821,-500.0,0.00038904,2]
[357639431,1744263071830,-500.0,0.00038904,2]
[357639432,1744263071840,-500.0,0.00038904,2]
[357639433,1744263071849,-500.0,0.00038904,2]
[357639434,1744263071859,-600.37,0.00038904,2]
[357639435,1744263071868,-540.97,0.00038904,2]
[357639436,1744263071877,-500.0,0.00038904,2]
[357639437,1744263071886,-500.0,0.00038904,2]
[357639438,1744263071895,-346.2,0.00038904,2]
[357639439,1744263071905,-500.0,0.00038904,2]
[357639440,1744263071915,-500.0,0.00038904,2]
[357639441,1744263071924,-500.0,0.00038904,2]
[357639442,1744263071933,-500.0,0.00038904,2]
[357639443,1744263071943,-500.0,0.00038904,2]
[357639444,1744263071952,-226.97322238,0.00038904,2]
[357639445,1744263071961,-564.45,0.00038904,2]
[357639446,1744263071971,-500.0,0.00038904,2]
[357639447,1744263071980,-639.34,0.00038904,2]
[357639448,1744263071989,-732.06,0.00038904,2]
[357639449,1744263071998,-1095.5,0.00038904,2]
[357639450,1744263072007,-500.0,0.00038904,2]
[357639451,1744263072017,-500.0,0.00038904,2]
[357639452,1744263072027,-680.52,0.00038904,2]
[357639453,1744263072036,-713.03,0.00038904,2]
[357639454,1744263072046,-500.0,0.00038904,2]
[357639455,1744263072055,-500.0,0.00038904,2]
[357639456,1744263072064,-500.0,0.00038904,2]
[357639457,1744263072073,-500.0,0.00038904,2]
[357639458,1744263072083,-151.0,0.00038904,14]
[357639459,1744263072092,-500.0,0.00038904,2]
[357639460,1744263072101,-500.0,0.00038904,2]
[357639461,1744263072111,-500.0,0.00038904,2]
[357639462,1744263072120,-953.15,0.00038904,2]
[357639463,1744263072130,-500.0,0.00038904,2]
[357639464,1744263072140,-500.0,0.00038904,2]
[357639465,1744263072149,-500.0,0.00038904,2]
[357639466,1744263072159,-500.0,0.00038904,2]
[357639467,1744263072168,-500.0,0.00038904,2]
[357639468,1744263072177,-733.83,0.00038904,2]
[357639469,1744263072187,-500.0,0.00038904,2]
[357639470,1744263072196,-500.0,0.00038904,2]
[357639471,1744263072206,-500.0,0.00038904,2]
[357639472,1744263072215,-500.0,0.00038904,2]
[357639473,1744263072224,-500.0,0.00038904,2]
[357639474,1744263072234,-500.0,0.00038904,2]
[357639475,1744263072243,-500.0,0.00038904,2]
[357639476,1744263072252,-541.75440461,0.00038904,2]
[357639477,1744263072263,-500.0,0.00038904,2]
[357639478,1744263072272,-500.0,0.00038904,2]
[357639479,1744263072282,-500.0,0.00038904,2]
[357639480,1744263072292,-1006.39,0.00038904,2]
[357639481,1744263072301,-500.0,0.00038904,2]
[357639482,1744263072310,-500.0,0.00038904,2]
[357639483,1744263072320,-500.0,0.00038904,2]
[357639484,1744263072331,-500.0,0.00038904,2]
[357639485,1744263072340,-500.0,0.00038904,2]
[357639486,1744263072350,-500.0,0.00038904,2]
[357639487,1744263072359,-500.0,0.00038904,2]
[357639488,1744263072370,-773.01,0.00038904,2]
[357639489,1744263072379,-769.58,0.00038904,2]
[357639490,1744263072388,-519.89792249,0.00038904,2]
[357639491,1744263072397,-500.0,0.00038904,2]
[357639492,1744263072408,-1427.56,0.00038904,2]
[357639493,1744263072418,-500.0,0.00038904,2]
[357639494,1744263072428,-500.0,0.00038904,2]
[357639495,1744263072437,-500.0,0.00038904,2]
[357639496,1744263072449,-541.16,0.00038904,2]
[357639497,1744263072459,-500.0,0.00038904,2]
[357639498,1744263072468,-536.61692847,0.00038904,2]
[357639499,1744263072478,-500.0,0.00038904,2]
[357639500,1744263072487,-1299.27,0.00038904,2]
[357639501,1744263072496,-500.0,0.00038904,2]
[357639502,1744263072505,-500.0,0.00038904,2]
[357639503,1744263072515,-500.0,0.00038904,2]
[357639504,1744263072524,-516.20707381,0.00038904,2]
[357639505,1744263072534,-708.54,0.00038904,2]
[357639506,1744263072543,-795.01,0.00038904,2]
[357639507,1744263072553,-500.0,0.00038904,2]
[357639508,1744263072562,-631.9283649,0.00038904,2]
[357639509,1744263072572,-658.97,0.00038904,2]
[357639510,1744263072581,-329.55528207,0.00038904,2]
[357639511,1744263072590,-993.37,0.00038904,2]
[357639512,1744263072600,-1632.03,0.00038904,2]
[357639513,1744263072610,-594.56,0.00038904,2]
[357639514,1744263072619,-524.93079119,0.00038904,2]
[357639515,1744263072628,-500.0,0.00038904,2]
[357639516,1744263072637,-543.98664553,0.00038904,2]
[357639517,1744263072647,-500.0,0.00038904,2]
[357639518,1744263072656,-578.26,0.00038904,2]
[357639519,1744263072666,-1083.25,0.00038904,2]
[357639520,1744263072675,-500.0,0.00038904,2]
[357639521,1744263072684,-151.0,0.00038904,14]
[357639522,1744263072694,-500.0,0.00038904,2]
[357639523,1744263072703,-286.87520225,0.00038904,2]
[357639524,1744263072713,-964.94,0.00038904,2]
[357639525,1744263072722,-500.0,0.00038904,2]
[357639526,1744263072732,-1000.0,0.00038904,2]
[357639527,1744263072741,-500.0,0.00038904,2]
[357639528,1744263072751,-1105.1,0.00038904,2]
[357639529,1744263072760,-663.92,0.00038904,2]
[357639530,1744263072770,-854.96,0.00038904,2]
[357639531,1744263072779,-513.87105796,0.00038904,2]
[357639532,1744263072788,-327.98590285,0.00038904,2]
[357639533,1744263072797,-500.0,0.00038904,2]
[357639534,1744263072807,-500.0,0.00038904,2]
[357639535,1744263072816,-500.0,0.00038904,2]
[357639536,1744263072826,-500.0,0.00038904,2]
[357639537,1744263072836,-937.5,0.00038904,2]
[357639538,1744263072845,-500.0,0.00038904,2]
[357639539,1744263072854,-500.0,0.00038904,2]
[357639540,1744263072864,-500.0,0.00038904,2]
[357639541,1744263072873,-500.0,0.00038904,2]
[357639542,1744263072883,-500.0,0.00038904,2]
[357639543,1744263072892,-326.618833,0.00038904,14]
[357639544,1744263072903,-500.0,0.00038904,2]
[357639545,1744263072912,-782.72,0.00038904,2]
[357639546,1744263072921,-510.67205262,0.00038904,2]
[357639547,1744263072931,-326.618833,0.00038904,14]
[357639548,1744263072940,-500.0,0.00038904,2]
[357639549,1744263072949,-500.0,0.00038904,2]
[357639550,1744263072959,-500.0,0.00038904,2]
[357639551,1744263072967,-500.0,0.00038904,2]
[357639552,1744263072977,-500.0,0.00038904,2]
[357639553,1744263072986,-500.0,0.00038904,2]
[357639554,1744263072996,-500.0,0.00038904,2]
[357639555,1744263073006,-500.0,0.00038904,2]
[357639556,1744263073015,-500.0,0.00038904,2]
[357639557,1744263073025,-740.93,0.00038904,2]
[357639558,1744263073034,-260.22237982,0.00038904,2]
[357639559,1744263073044,-1260.52,0.00038904,2]
[357639560,1744263073054,-905.18,0.00038904,2]
[357639561,1744263073064,-500.0,0.00038904,2]
[357639562,1744263073073,-418.27290467,0.00038904,2]
[357639563,1744263073082,-500.0,0.00038904,2]
[357639564,1744263073092,-413.37593279,0.00038904,2]
[357639565,1744263073102,-500.0,0.00038904,2]
[357639566,1744263073111,-500.0,0.00038904,2]
[357639567,1744263073121,-525.47893139,0.00038904,2]
[357639568,1744263073131,-1750.92,0.00038904,2]
[357639569,1744263073140,-699.82,0.00038904,2]
[357639570,1744263073149,-450.61163393,0.00038904,2]
[357639571,1744263073159,-500.0,0.00038904,2]
[357639572,1744263073168,-1065.92,0.00038904,2]
[357639573,1744263073177,-500.0,0.00038904,2]
[357639574,1744263073187,-553.41,0.00038904,2]
[357639575,1744263073196,-500.0,0.00038904,2]
[357639576,1744263073206,-500.0,0.00038904,2]
[357639577,1744263073215,-538.58914805,0.00038904,2]
[357639578,1744263073225,-500.0,0.00038904,2]
[357639579,1744263073235,-500.0,0.00038904,2]
[357639580,1744263073244,-500.0,0.00038904,2]
[357639581,1744263073254,-2100.96,0.00038904,2]
[357639582,1744263073263,-170.4358744,0.00038904,2]
[357639583,1744263073272,-500.0,0.00038904,2]
[357639584,1744263073281,-506.38,0.00038904,2]
[357639585,1744263073291,-500.0,0.00038904,2]
[357639586,1744263073300,-522.03732743,0.00038904,2]
[357639587,1744263073310,-500.0,0.00038904,2]
[357639588,1744263073319,-500.0,0.00038904,2]
[357639589,1744263073328,-500.0,0.00038904,2]
[357639590,1744263073338,-500.0,0.00038904,2]
[357639591,1744263073347,-699.01,0.00038904,2]
[357639592,1744263073356,-619.1,0.00038904,2]
[357639593,1744263073367,-618.83,0.00038904,2]
[357639594,1744263073378,-1260.45,0.00038904,2]
[357639595,1744263073388,-500.0,0.00038904,2]
[357639596,1744263073397,-500.0,0.00038904,2]
[357639597,1744263073406,-500.0,0.00038904,2]
[357639598,1744263073417,-500.0,0.00038904,2]
[357639599,1744263073427,-629.12,0.00038904,2]
[357639600,1744263073437,-500.0,0.00038904,2]
[357639601,1744263073446,-500.0,0.00038904,2]
[357639602,1744263073456,-232.43786548,0.00038904,2]
[357639603,1744263073466,-500.0,0.00038904,2]
[357639604,1744263073634,-901.87,0.00038904,2]
[357639605,1744263073645,-1535.2,0.00038904,2]
[357639606,1744263073655,-500.0,0.00038904,2]
[357639607,1744263073664,-2036.28,0.00038904,2]
[357639608,1744263073674,-518.56884709,0.00038904,2]
[357639609,1744263073683,-500.0,0.00038904,2]
[357639610,1744263073693,-500.0,0.00038904,2]
[357639611,1744263073702,-592.98,0.00038904,2]
[357639612,1744263073711,-1592.0,0.00038904,2]
[357639613,1744263073720,-547.28,0.00038904,2]
[357639614,1744263073730,-913.24,0.00038904,2]
[357639615,1744263073739,-522.51,0.00038904,2]
[357639616,1744263073748,-500.0,0.00038904,2]
[357639617,1744263073758,-500.0,0.00038904,2]
[357639618,1744263073767,-500.0,0.00038904,2]
[357639619,1744263073776,-500.0,0.00038904,2]
[357639620,1744263073786,-500.0,0.00038904,2]
[357639621,1744263073795,-1171.35,0.00038904,2]
[357639622,1744263073804,-500.0,0.00038904,2]
[357639623,1744263073815,-500.0,0.00038904,2]
[357639624,1744263073824,-500.0,0.00038904,2]
[357639625,1744263073834,-1033.06,0.00038904,2]
[357639626,1744263073843,-500.0,0.00038904,2]
[357639627,1744263073853,-1000.0,0.00038904,2]
[357639628,1744263073862,-1595.19,0.00038904,2]
[357639629,1744263073871,-500.0,0.00038904,2]
[357639630,1744263073881,-500.0,0.00038904,2]
[357639631,1744263073891,-500.0,0.00038904,2]
[357639632,1744263073900,-500.0,0.00038904,2]
[357639633,1744263073910,-500.0,0.00038904,2]
[357639634,1744263073919,-500.0,0.00038904,2]
[357639635,1744263073928,-534.84089049,0.00038904,2]
[357639636,1744263073938,-500.0,0.00038904,2]
[357639637,1744263073948,-500.0,0.00038904,2]
[357639638,1744263073958,-500.0,0.00038904,2]
[357639639,1744263073967,-584.7,0.00038904,2]
[357639640,1744263073976,-1947.41,0.00038904,2]
[357639641,1744263073986,-500.0,0.00038904,2]
[357639642,1744263073995,-500.0,0.00038904,2]
[357639643,1744263074005,-500.0,0.00038904,2]
[357639644,1744263074015,-526.90123182,0.00038904,2]
[357639645,1744263074024,-926.43,0.00038904,2]
[357639646,1744263074034,-500.0,0.00038904,2]
[357639647,1744263074044,-500.0,0.00038904,2]
[357639648,1744263074053,-500.0,0.00038904,2]
[357639649,1744263074062,-500.0,0.00038904,2]
[357639650,1744263074072,-500.0,0.00038904,2]
[357639651,1744263074081,-360.66732784,0.00038904,2]
[357639652,1744263074091,-500.0,0.00038904,2]
[357639653,1744263074101,-500.0,0.00038904,2]
[357639654,1744263074110,-610.03,0.00038904,2]
[357639655,1744263074120,-500.0,0.00038904,2]
[357639656,1744263074129,-981.36,0.00038904,2]
[357639657,1744263074139,-500.0,0.00038904,2]
[357639658,1744263074148,-543.16568678,0.00038904,2]
[357639659,1744263074157,-793.73,0.00038904,2]
[357639660,1744263074166,-517.84282842,0.00038904,2]
[357639661,1744263074175,-500.0,0.00038904,2]
[357639662,1744263074185,-207.59877539,0.00038904,2]
[357639663,1744263074195,-727.92,0.00038904,2]
[357639664,1744263074204,-683.98,0.00038904,2]
[357639665,1744263074214,-508.06329494,0.00038904,2]
[357639666,1744263074223,-500.0,0.00038904,2]
[357639667,1744263074232,-500.0,0.00038904,2]
[357639668,1744263074242,-500.0,0.00038904,2]
[357639669,1744263074251,-573.05,0.00038904,2]
[357639670,1744263074260,-500.0,0.00038904,2]
[357639671,1744263074270,-653.48,0.00038904,2]
[357639672,1744263074279,-500.0,0.00038904,2]
[357639673,1744263074288,-500.0,0.00038904,2]
[357639674,1744263074298,-872.19,0.00038904,2]
[357639675,1744263074307,-500.0,0.00038904,2]
[357639676,1744263074316,-585.0,0.00038904,2]
[357639677,1744263074325,-500.0,0.00038904,2]
[357639678,1744263074335,-578.0,0.00038904,2]
[357639679,1744263074344,-1098.43,0.00038904,2]
[357639680,1744263074354,-500.0,0.00038904,2]
[357639681,1744263074367,-557.08,0.00038904,2]
[357639682,1744263074377,-500.0,0.00038904,2]
[357639683,1744263074386,-500.0,0.00038904,2]
[357639684,1744263074395,-775.81,0.00038904,2]
[357639685,1744263074406,-500.0,0.00038904,2]
[357639686,1744263074415,-500.0,0.00038904,2]
[357639687,1744263074425,-500.0,0.00038904,2]
[357639688,1744263074435,-151.0,0.00038904,14]
[357639689,1744263074444,-500.0,0.00038904,2]
[357639690,1744263074455,-827.44,0.00038904,2]
[357639691,1744263074464,-500.0,0.00038904,2]
[357639692,1744263074476,-2624.4,0.00038904,2]
[357639693,1744263074485,-500.0,0.00038904,2]
[357639694,1744263074495,-500.0,0.00038904,2]
[357639695,1744263074506,-2889.02,0.00038904,2]
[357639696,1744263074515,-538.04,0.00038904,2]
[357639697,1744263074524,-533.58666719,0.00038904,2]
[357639698,1744263074534,-500.0,0.00038904,2]
[357639699,1744263074544,-500.0,0.00038904,2]
[357639700,1744263074554,-500.0,0.00038904,2]
[357639701,1744263074563,-500.0,0.00038904,2]
[357639702,1744263074572,-500.0,0.00038904,2]
[357639703,1744263074582,-595.49,0.00038904,2]
[357639704,1744263074592,-1057.22,0.00038904,2]
[357639705,1744263074601,-208.352474,0.00038904,14]
[357639706,1744263074610,-151.0,0.00038904,14]
[357639707,1744263074620,-208.352474,0.00038904,14]
[357639708,1744263074629,-547.12,0.00038904,2]
[357639709,1744263074639,-500.0,0.00038904,2]
[357639710,1744263074648,-1644.09,0.00038904,2]
[357639711,1744263074657,-535.22,0.00038904,2]
[357639712,1744263074667,-154.113989,0.00038904,14]
[357639713,1744263074676,-500.0,0.00038904,2]
[357639714,1744263074686,-727.43,0.00038904,2]
[357639715,1744263074695,-610.71057514,0.00038904,2]
[357639716,1744263074704,-799.77,0.00038904,2]
[357639717,1744263074713,-500.0,0.00038904,2]
[357639718,1744263074722,-959.4,0.00038904,2]
[357639719,1744263074732,-1648.43,0.00038904,2]
[357639720,1744263074741,-151.0,0.00038904,14]
[357639721,1744263074750,-738.51,0.00038904,2]
[357639722,1744263074760,-608.9,0.00038904,2]
[357639723,1744263074769,-500.0,0.00038904,2]
[357639724,1744263074779,-699.08,0.00038904,2]
[357639725,1744263074789,-885.56,0.00038904,2]
[357639726,1744263074798,-527.96883473,0.00038904,2]
[357639727,1744263074808,-624.37,0.00038904,2]
[357639728,1744263074817,-500.0,0.00038904,2]
[357639729,1744263074826,-199.18773135,0.00038904,2]
[357639730,1744263074835,-500.0,0.00038904,2]
[357639731,1744263074844,-480.53560626,0.00038904,2]
[357639732,1744263074854,-1033.25,0.00038904,2]
[357639733,1744263074864,-500.0,0.00038904,2]
[357639734,1744263074874,-2525.7,0.00038904,2]
[357639735,1744263074883,-500.0,0.00038904,2]
[357639736,1744263074893,-1305.17,0.00038904,2]
[357639737,1744263074902,-500.0,0.00038904,2]
[357639738,1744263074911,-500.0,0.00038904,2]